[Event "USA Championship Women 2022"]
[Site "Saint Louis"]
[Date "2022.10.14"]
[Round "9.3"]
[White "Cervantes Landeiro, Thalia"]
[Black "Foisor, Sabina-Francesca"]
[Result "1-0"]
[ECO "D46"]
[WhiteElo "2272"]
[BlackElo "2203"]
[Annotator "TA"]
[PlyCount "95"]
[EventDate "2022.09.05"]
[EventType "tourn"]
[EventCountry "USA"]
[SourceTitle "playchess.com"]
[Source "ChessBase"]
[SourceQuality "1"]
[TimeControl "40/5400+30:1800+30"]

{[%evp 21,95,57,46,19,40,0,32,33,30,25,16,0,0,0,0,-7,8,11,189,29,50,25,43,40,35,45,52,33,290,283,289,286,275,280,438,445,439,445,447,439,448,455,447,450,444,436,493,508,497,498,509,515,609,619,676,663,745,738,780,778,725,736,869,842,1060,1013,4288,2374,6207,6087,5218,5402,29989,29990,29990,29991]} 1. d4 {[%emt 0:00:04]} d5 {[%emt 0:00:08]} 2. c4 {[%emt 0:00:11]} c6 {[%emt 0:00:05]} 3. Nf3 {[%emt 0:00:08]} Nf6 {[%emt 0:00:17]} 4. e3 {[%emt 0:00:10]} e6 {[%emt 0:01:15]} 5. Bd3 {[%emt 0:00:21]} Nbd7 {[%emt 0:01:31]} 6. Nc3 {[%emt 0:01:10]} Bd6 {[%emt 0:00:44]} 7. O-O {[%emt 0:01:44]} O-O {[%emt 0:01:04]} 8. e4 {[%emt 0:01:25]} dxe4 {[%emt 0:06:01]} 9. Nxe4 {[%emt 0:00:10]} Nxe4 {[%emt 0:00:27]} 10. Bxe4 {[%emt 0:00:08]} Nf6 {[%emt 0:06:30]} 11. Bc2 {[%emt 0:02:07]} c5 {[%emt 0:15:44] seems to push 11...h6 aside.} 12. dxc5 {[%emt 0:08:53] D46: Semi-Slav: 5 e3 Nbd7 6 Bd3, Black avoids the Meran.} Bxc5 {[%emt 0:00:26]} 13. Qe2 {[%emt 0:01:01]} h6 {[%emt 0:13:14]} 14. Bf4 {[%emt 0:08:15] White is slightly better.} b6 {[%emt 0:08:03]} 15. Rad1 {[%emt 0:09:08]} Qe7 {[%emt 0:00:45]} 16. Ne5 {[%emt 0:11:29][%cal Ob2b4]} Bb7 {[%emt 0:00:52] [#]} 17. Rd3 $146 {[%emt 0:04:14][%cal Of4h6]} ({Predecessor:} 17. Ba4 Rfd8 18. Nc6 Bxc6 19. Bxc6 Rac8 20. Bf3 Rxd1 21. Rxd1 Rd8 22. Be5 Rxd1+ 23. Qxd1 {½-½ (49) Garnier,R (2202)-Belmonte,D (1954) Buenos Aires 2018}) 17... Be4 {[%emt 0:09:23]} 18. Rh3 {[%emt 0:00:58]} Bxc2 {[%emt 0:08:14]} 19. Qxc2 {[%emt 0:00:14][%cal Of4h6] White wants to play Bxh6!} Qb7 $2 {[%emt 0:02:44] [#]} (19... Rfc8 $11) 20. Qc1 $2 {[%emt 0:24:58]} ({Only move:} 20. Bxh6 $1 $18 {[%mdl 512]} gxh6 21. Qd2) 20... h5 {[%emt 0:13:22] [#]} 21. Bh6 $1 {[%emt 0:03:32][%cal Oh6g7] Hoping for Bxg7!} Ne4 {[%emt 0:03:43]} 22. Rxh5 {[%emt 0:01:48][%cal Oh6g7] White threatens Bxg7! and mate.} f6 $1 {[%emt 0:00:24]} 23. Ng4 {[%emt 0:03:03][%cal Oh6g7] Threatens to win with Bxg7!} ({Weaker is} 23. Ng6 Qf7 24. Nxf8 Qxh5 25. Nxe6 gxh6 26. Nxc5 Nxc5 $17) 23... Qf7 {[%emt 0:01:42]} (23... f5 $2 24. Bxg7 $1 {[%mdl 512]} Bd6 25. Rh8+ Kf7 26. Rh7 $18) 24. Rh4 $40 {[%emt 0:03:36][%cal Oh6g7][%mdl 128] And now Bxg7! would win. White is up to no good.} Rfd8 $2 {[%emt 0:00:52][%mdl 8192] [#] Black is now going downhill.} (24... Qg6 $1 $14) 25. Bxg7 $1 $18 {[%emt 0:01:19][%mdl 512]} Qxg7 {[%emt 0:00:24]} 26. Nh6+ {[%emt 0:00:23][%mdl 64] Discovered Attack} Kf8 {[%emt 0:00:05]} 27. Rxe4 {[%emt 0:00:17]} e5 {[%emt 0:02:46]} (27... Qg5 $142 28. Qxg5 (28. Rxe6 Qxc1 29. Rxc1 Rd2 $18) 28... fxg5 29. Rxe6 Kg7) 28. Rg4 {[%emt 0:01:01]} Qh7 {[%emt 0:00:16]} 29. Rg8+ {[%emt 0:00:18]} Ke7 {[%emt 0:00:04] [#]} 30. Rg7+ {[%emt 0:00:10][%mdl 512]} Qxg7 {[%emt 0:00:23]} 31. Nf5+ {[%emt 0:00:09]} Kf7 {[%emt 0:00:03]} 32. Nxg7 {[%emt 0:00:10]} Kxg7 {[%emt 0:00:01]} 33. Qc3 {[%emt 0:02:43]} a5 {[%emt 0:01:10]} 34. Qg3+ {[%emt 0:00:28]} Kf7 {[%emt 0:00:09]} 35. Qf3 {[%emt 0:00:47]} Ra7 {[%emt 0:02:42]} 36. Rd1 {[%emt 0:04:11]} Rxd1+ {[%emt 0:00:59]} 37. Qxd1 {[%emt 0:00:02][%mdl 4096] Endgame KQ-KRB} Ke7 {[%emt 0:00:13]} 38. h4 {[%emt 0:01:18][%cal Bh2h4,Bh4h5][%mdl 32]} Rd7 {[%emt 0:00:30]} 39. Qe2 {[%emt 0:00:48]} Rd4 {[%emt 0:01:01]} 40. g3 {[%emt 0:00:52][%cal Bg2g3,Bg3g4][%mdl 32]} Ke6 {[%emt 0:01:12]} 41. h5 {[%emt 0:33:32]} Kf5 {[%emt 0:10:37]} 42. Kg2 {[%emt 0:00:00]} Kg5 {[%emt 0:06:44]} 43. Kh3 {[%emt 0:00:00]} Kh6 {[%emt 0:00:32]} 44. Qf3 {[%emt 0:00:00]} Kg5 {[%emt 0:02:26]} 45. g4 {[%emt 0:00:00] Intending Qf5+ and mate.} Rf4 {[%emt 0:00:31] Against Qf5+} 46. Qb7 {[%emt 0:00:00][%cal Rb7g7]} Rxf2 {[%emt 0:03:55]} 47. Kg3 {[%emt 0:00:00][%cal Rb7g7]} Kh6 {[%emt 0:03:43]} 48. Qf7 {[%emt 0:00:00] Weighted Error Value: White=0.10 (very precise) /Black=0.48} 1-0

[Event "USA Championship Women 2022"]
[Site "Saint Louis"]
[Date "2022.10.14"]
[Round "9.4"]
[White "Morris-Suzuki, Sophie"]
[Black "Zatonskih, Anna"]
[Result "1/2-1/2"]
[ECO "C02"]
[WhiteElo "2126"]
[BlackElo "2368"]
[Annotator "TA"]
[PlyCount "104"]
[EventDate "2022.09.05"]
[EventType "tourn"]
[EventCountry "USA"]
[SourceTitle "playchess.com"]
[Source "ChessBase"]
[SourceQuality "1"]
[TimeControl "40/5400+30:1800+30"]

{[%evp 10,104,13,9,8,20,25,27,0,-58,0,0,22,25,42,37,79,31,27,27,24,38,36,31,47,48,36,35,47,46,38,23,54,62,54,16,25,0,0,0,0,-34,-2,-52,-46,-45,0,-46,-35,-20,0,0,0,0,25,17,8,14,23,0,0,-3,-8,-8,35,-20,0,0,0,0,28,27,30,33,34,0,68,60,60,57,52,20,162,166,164,79,78,79,106,108,155,0,107,0,103,0,90]} 1. e4 {[%emt 0:00:08]} e6 {[%emt 0:00:44]} 2. d4 {[%emt 0:00:13]} d5 {[%emt 0:00:02]} 3. e5 {[%emt 0:00:16]} c5 {[%emt 0:00:22]} 4. c3 {[%emt 0:00:12]} Qb6 {[%emt 0:01:05]} 5. Nf3 {[%emt 0:00:20]} Bd7 {[%emt 0:00:55]} 6. Bd3 {[%emt 0:00:20]} cxd4 {[%emt 0:03:34] C02: French: Advance Variation.} 7. Nxd4 {[%emt 0:00:17] Nowadays more popular than 7.cxd4.} Bc5 {[%emt 0:14:54]} 8. Qg4 {[%emt 0:00:15]} Ne7 {[%emt 0:03:52] [#] White has an edge.} 9. Na3 $146 {[%emt 0:21:56]} (9. O-O $11) ({Predecessor:} 9. O-O Ng6 10. Nf3 Bb5 11. Bxb5+ Qxb5 12. Nbd2 Nd7 13. Nb3 Be7 14. Re1 h5 15. Qg3 {0-1 (50) Matlakov,M (2688)-Gorovykh,E (2488) St Petersburg 2021}) 9... Ng6 {[%emt 0:22:04]} ({Black should try} 9... Nbc6 $15 10. Nxc6 (10. Qxg7 Rg8 $17) 10... Qxc6) 10. O-O $11 {[%emt 0:04:24]} O-O {[%emt 0:13:06]} 11. Nf3 {[%emt 0:09:12][%cal Bd4f3,Bf3g5,Bg5e6][%mdl 32]} Bxa3 {[%emt 0:10:44]} 12. bxa3 {[%emt 0:00:03]} Qa5 {[%emt 0:04:49]} 13. Bd2 {[%emt 0:03:35] White is more active.} (13. Rb1 $16) 13... Qa4 $14 {[%emt 0:04:26]} 14. Qh5 {[%emt 0:04:32]} Bb5 {[%emt 0:00:15]} 15. Bxb5 {[%emt 0:03:06]} Qxb5 {[%emt 0:00:08]} 16. Ng5 $1 {[%emt 0:00:51][%csl Gg5][%cal Rh5h7]} h6 {[%emt 0:01:53] [#]} 17. Nxe6 {[%emt 0:00:45]} fxe6 {[%emt 0:00:06]} 18. Qxg6 {[%emt 0:00:18]} Qe8 {[%emt 0:00:08]} 19. Qg3 {[%emt 0:00:59]} Kh8 {[%emt 0:00:16]} 20. Rab1 {[%emt 0:00:37]} b6 {[%emt 0:01:25]} 21. Rb4 {[%emt 0:04:17]} Nc6 {[%emt 0:01:53][%cal Bb8c6,Bc6e7,Be7f5][%mdl 32]} 22. Rg4 {[%emt 0:00:15]} (22. Rh4 $5 {[%cal Rd2h6]} Kh7 23. c4 $16) 22... Ne7 {[%emt 0:02:19]} 23. Qh3 {[%emt 0:12:18][%cal Od2h6] [#] Hoping for Bxh6!} (23. Rxg7 $2 Nf5 24. Qg6 Nxg7 $19) (23. c4 $5 {[%cal Rc4d5]}) 23... Nf5 {[%emt 0:02:31]} 24. Rb4 {[%emt 0:00:40]} Rc8 {[%emt 0:01:03]} 25. g4 {[%emt 0:06:00]} Qg6 {[%emt 0:03:19]} 26. Kh1 {[%emt 0:11:08]} ({White should play} 26. Qd3 $11) 26... Ne7 $15 {[%emt 0:00:05] Strongly threatening ...Nc6.} 27. g5 {[%emt 0:03:03][%cal Rg5h6]} Qf5 {[%emt 0:00:26]} 28. Rh4 {[%emt 0:02:45]} (28. Qxf5 $11 Rxf5 29. gxh6) 28... Qxh3 {[%emt 0:02:40]} ({Don't do} 28... Qxe5 29. Re1 Qf5 30. Rxe6 Qxh3 31. Rxh3 $16) 29. Rxh3 {[%emt 0:00:01]} Kh7 {[%emt 0:01:55]} 30. gxh6 {[%emt 0:00:23]} g6 {[%emt 0:00:02]} 31. Bg5 {[%emt 0:04:22]} Nf5 {[%emt 0:00:22]} 32. Rb1 {[%emt 0:01:16]} Rc4 {[%emt 0:03:22]} 33. Rb4 $1 {[%emt 0:00:14] Against Ra4} Rfc8 {[%emt 0:00:32]} 34. Bd2 {[%emt 0:00:41]} Re4 {[%emt 0:01:30]} 35. Rd3 {[%emt 0:03:04] Black must now prevent Rxe4.} Rxe5 {[%emt 0:00:21]} 36. a4 {[%emt 0:00:22][%cal Oa4a5]} Ne7 {[%emt 0:00:31]} 37. c4 {[%emt 0:02:15]} (37. a5 $14) 37... Rf5 {[%emt 0:00:41]} (37... Rxc4 $2 38. Rxc4 dxc4 39. Rd7 $18) 38. cxd5 {[%emt 0:01:18]} Nxd5 {[%emt 0:00:19]} 39. Re4 {[%emt 0:00:02]} Rc6 {[%emt 0:00:19]} 40. Kg2 {[%emt 0:02:15]} Nf6 {[%emt 0:00:32]} 41. Rf4 {[%emt 0:15:06]} Nd5 {[%emt 0:13:06]} 42. Re4 {[%emt 0:06:31]} ({Much weaker is} 42. Rxf5 gxf5 43. a5 bxa5 $11) 42... a5 {[%emt 0:05:26]} (42... Nf6 $11 43. Re2 Nd5) 43. h4 $14 {[%emt 0:02:05]} Rf7 {[%emt 0:01:03]} 44. Rf3 {[%emt 0:05:20]} Rf5 {[%emt 0:02:51]} 45. h5 {[%emt 0:02:40]} Rxf3 {[%emt 0:08:31]} (45... Rxh5 $11 46. Rf7+ Kh8) 46. hxg6+ $18 {[%emt 0:00:11]} ({Stronger than} 46. Kxf3 gxh5 47. Bg5 Nc3 $11) 46... Kxg6 {[%emt 0:00:07]} 47. Rg4+ {[%emt 0:00:57]} (47. Kxf3 $18 {is more deadly. aiming for Rg4+.} Nf6 48. Re1) 47... Kh7 $16 {[%emt 0:02:21]} 48. Kxf3 {[%emt 0:01:08] Rg7+ is the strong threat.} Rc7 {[%emt 0:00:23] Against Rg7+} 49. Re4 {[%emt 0:00:39]} Rc6 {[%emt 0:01:08]} ({Better is} 49... Rc2) 50. Rg4 {[%emt 0:01:09]} (50. Rd4 $142) 50... Rc7 {[%emt 0:00:01]} 51. Re4 {[%emt 0:00:16]} Rc6 {[%emt 0:00:03]} 52. Rg4 {[%emt 0:00:19] Threatens to win with Rg7+.} Rc7 {[%emt 0:00:18] Inhibits Rg7+.  Weighted Error Value: White=0.21 (precise) /Black=0.18 (very precise)} 1/2-1/2

[Event "USA Championship Women 2022"]
[Site "Saint Louis"]
[Date "2022.10.14"]
[Round "9.5"]
[White "Eswaran, Ashritha"]
[Black "Yu, Jennifer"]
[Result "0-1"]
[ECO "B15"]
[WhiteElo "2365"]
[BlackElo "2297"]
[Annotator "TA"]
[PlyCount "112"]
[EventDate "2022.09.05"]
[EventType "tourn"]
[EventCountry "USA"]
[SourceTitle "playchess.com"]
[Source "ChessBase"]
[SourceQuality "1"]
[TimeControl "40/5400+30:1800+30"]

{[%evp 11,112,22,32,28,30,15,25,7,12,7,16,1,12,12,0,0,27,0,0,-11,0,0,-8,-59,-57,-58,-57,-64,-70,-81,-88,-84,-97,-113,-131,-429,-432,-459,-462,-458,-459,-476,-420,-420,-415,-407,-412,-400,-397,-420,-388,-386,-395,-393,-390,-381,-379,-390,-396,-424,-430,-450,-439,-528,-522,-501,-498,-565,-568,-804,-609,-609,-609,-609,-571,-569,-566,-586,-471,-584,-566,-567,-549,-598,-599,-590,-581,-566,-558,-702,-697,-825,-811,-811,-797,-781,-754,-29981,-29982,-29982,-29983,-29979,-29978]} 1. e4 {[%emt 0:00:03]} c6 {[%emt 0:03:44]} 2. d4 {[%emt 0:01:23]} d5 {[%emt 0:00:20]} 3. Nc3 {[%emt 0:00:19]} dxe4 {[%emt 0:00:18]} 4. Nxe4 {[%emt 0:00:06]} Nf6 {[%emt 0:00:40]} 5. Nxf6+ {[%emt 0:00:22]} exf6 {[%emt 0:00:16]} 6. c3 {[%emt 0:00:06]} Bf5 {[%emt 0:00:20]} 7. Bc4 {[%emt 0:03:31] B15: Caro-Kann: 3 Nc3: 3...g6 and 3...dxe4 4 Nxe4 Nf6 5 Nxf6+ exf6.} Bd6 {[%emt 0:01:48]} 8. Qe2+ {[%emt 0:01:03]} Qe7 {[%emt 0:01:04]} 9. Nf3 {[%emt 0:01:46] [#] White has an edge.} Nd7 $146 {[%emt 0:03:37]} ({Predecessor:} 9... Na6 10. Nh4 Bg4 11. Qxe7+ Kxe7 12. Bd3 Rhe8 13. Bf5 Bxf5 14. Nxf5+ Kd7+ 15. Be3 Bf8 {1-0 (55) Fedorchuk,S (2657)-Larino Nieto,D (2451) Rabat 2015}) 10. Qxe7+ $1 {[%emt 0:01:36]} Kxe7 {[%emt 0:00:06]} 11. O-O {[%emt 0:00:07]} Rhe8 {[%emt 0:01:20]} 12. Nh4 {[%emt 0:03:29]} Be6 {[%emt 0:01:34]} 13. Bd3 {[%emt 0:00:08]} g6 {[%emt 0:01:07] Against Nf5+} 14. Re1 {[%emt 0:00:59]} Kf8 {[%emt 0:03:07]} 15. c4 {[%emt 0:12:43]} Rad8 {[%emt 0:12:32][%cal Ba8d8,Bd8d7,Bd7e7][%mdl 32]} 16. Bd2 {[%emt 0:07:54]} Be7 {[%emt 0:10:07] With the idea ...Nb6.} 17. Ba5 {[%emt 0:04:43]} ({White should try} 17. Bc3 $11) 17... Nb6 $15 {[%emt 0:08:29]} 18. Nf3 {[%emt 0:00:07]} Rd7 $1 {[%emt 0:10:14]} 19. b3 {[%emt 0:05:12]} Bg4 {[%emt 0:02:17]} 20. Bc3 {[%emt 0:02:32]} Bxf3 {[%emt 0:02:14]} 21. gxf3 {[%emt 0:00:07]} Red8 {[%emt 0:00:18][%cal Be8d8,Bd8d4,Bd4f4][%mdl 32]} 22. b4 {[%emt 0:10:49]} Na4 {[%emt 0:11:30]} 23. Rxe7 $2 {[%emt 0:06:18][%mdl 8192] Loses the game.} (23. Bd2 $17 {was the only defense.}) 23... Rxe7 $19 {[%emt 0:02:36]} 24. Be1 {[%emt 0:00:07]} Rxd4 {[%emt 0:00:27]} 25. Bf1 {[%emt 0:00:05]} Kg7 {[%emt 0:07:46]} 26. Rb1 {[%emt 0:00:49]} Nb6 {[%emt 0:05:41]} 27. Rc1 {[%emt 0:01:38]} Nd7 {[%emt 0:00:31]} 28. Bc3 {[%emt 0:01:03]} Rf4 {[%emt 0:00:06]} 29. Kg2 {[%emt 0:00:22]} Ne5 {[%emt 0:01:51]} 30. Be2 {[%emt 0:00:21]} g5 {[%emt 0:00:33]} 31. Bd2 {[%emt 0:00:30]} Ng6 {[%emt 0:00:38]} 32. Be3 {[%emt 0:00:58]} Rh4 {[%emt 0:01:23]} 33. Bf1 {[%emt 0:00:32]} b6 {[%emt 0:01:20]} 34. Rd1 {[%emt 0:01:00]} Rh6 {[%emt 0:01:08]} 35. Kg3 {[%emt 0:05:41]} Nh4 {[%emt 0:02:41]} 36. Bh3 {[%emt 0:00:05] [#] Inhibits Nf5+.} Nxf3 $1 {[%emt 0:00:42]} 37. a4 {[%emt 0:03:18]} (37. c5 b5) 37... Rh4 {[%emt 0:01:39]} 38. c5 {[%emt 0:00:15]} Ne5 {[%emt 0:00:53]} 39. Bd4 {[%emt 0:02:27]} Re8 {[%emt 0:00:57] aiming for ...Rd8.} 40. b5 {[%emt 0:04:13]} cxb5 {[%emt 0:01:01]} 41. axb5 {[%emt 0:31:35]} bxc5 {[%emt 0:05:31]} 42. Bxc5 {[%emt 0:00:00]} Rc4 {[%emt 0:03:01]} 43. Be3 {[%emt 0:00:00]} Rb4 {[%emt 0:05:46]} 44. Bf1 {[%emt 0:00:00]} Rg4+ {[%emt 0:04:19]} 45. Kh3 {[%emt 0:00:00]} h5 {[%emt 0:00:51] [#] And now ...Rg1 would win.} 46. Be2 {[%emt 0:00:00]} Rh4+ {[%emt 0:00:28]} 47. Kg3 {[%emt 0:00:00]} Ng4 {[%emt 0:00:23]} 48. Bxg4 {[%emt 0:00:00]} Rxg4+ {[%emt 0:00:09][%mdl 4096] Endgame KRR-KRB} 49. Kf3 {[%emt 0:00:00]} Re7 {[%emt 0:02:20]} 50. Rd6 {[%emt 0:00:00]} Re5 {[%emt 0:01:42]} 51. Bd4 {[%emt 0:00:00]} Rf4+ {[%emt 0:01:00]} 52. Kg2 {[%emt 0:00:00]} Rxb5 {[%emt 0:00:03]} 53. Bxa7 {[%emt 0:00:00]} Rg4+ {[%emt 0:00:25]} 54. Kh3 {[%emt 0:00:00]} Rb3+ {[%emt 0:02:02] Black mates.} 55. Be3 {[%emt 0:00:00]} f5 {[%emt 0:00:16]} 56. f3 {[%emt 0:00:00]} Rh4+ {[%emt 0:00:12] Weighted Error Value: White=0.34/Black=0.15 (very precise)} 0-1

[Event "USA Championship Women 2022"]
[Site "Saint Louis"]
[Date "2022.10.14"]
[Round "9.6"]
[White "Lee, Alice"]
[Black "Krush, Irina"]
[Result "1/2-1/2"]
[ECO "D45"]
[WhiteElo "2263"]
[BlackElo "2432"]
[Annotator "TA"]
[PlyCount "135"]
[EventDate "2022.09.05"]
[EventType "tourn"]
[EventCountry "USA"]
[SourceTitle "playchess.com"]
[Source "ChessBase"]
[SourceQuality "1"]
[TimeControl "40/5400+30:1800+30"]

{[%evp 18,135,2,0,0,0,0,0,0,-3,25,-15,26,16,31,-10,-3,-26,0,-56,-45,-117,-122,-137,-139,-122,-140,-206,-34,-54,0,0,0,0,54,0,0,0,0,0,0,0,0,0,0,0,0,0,0,0,0,-14,0,0,0,0,691,690,687,645,1176,0,0,0,0,0,0,0,0,0,0,0,0,0,0,0,0,0,0,0,0,0,0,0,0,0,0,0,0,0,0,0,0,0,0,0,0,0,0,0,0,0,0,0,0,0,0,0,0,0,0,0,0,0,0,0,0,0,0,0]} 1. d4 {[%emt 0:00:01]} d5 {[%emt 0:01:20]} 2. c4 {[%emt 0:00:06]} e6 {[%emt 0:00:12]} 3. Nf3 {[%emt 0:00:28]} Nf6 {[%emt 0:00:26]} 4. Nc3 {[%emt 0:00:07]} c6 {[%emt 0:00:20]} 5. e3 {[%emt 0:01:09]} Nbd7 {[%emt 0:00:21]} 6. Be2 {[%emt 0:00:09]} Bd6 {[%emt 0:00:18]} 7. O-O {[%emt 0:00:22]} O-O {[%emt 0:00:08]} 8. b3 {[%emt 0:00:11]} b6 {[%emt 0:00:09]} 9. Bb2 {[%emt 0:00:09]} Bb7 {[%emt 0:00:08]} 10. Qc2 {[%emt 0:00:17]} Re8 {[%emt 0:00:19] D45: Semi-Slav: 5 e3.} 11. Rfe1 {[%emt 0:00:56]} c5 {[%emt 0:01:44]} 12. cxd5 {[%emt 0:07:37]} exd5 {[%emt 0:00:47]} 13. Rad1 {[%emt 0:01:15] [#]} h6 $146 {[%emt 0:09:00]} ({Predecessor:} 13... Rc8 14. Qb1 a6 15. Bf1 b5 16. dxc5 Nxc5 17. h3 Ne6 18. Rc1 Bb4 19. a3 Bf8 20. Red1 Qb6 21. Qf5 h6 22. Qb1 {½-½ (22) Lemos,D (2511)-Conquest,S (2549) Porto Mannu 2009}) 14. Qb1 {[%emt 0:15:46]} Qe7 {[%emt 0:10:02]} 15. Nh4 {[%emt 0:03:09]} Qe6 {[%emt 0:02:01]} 16. Bf3 {[%emt 0:05:59]} Ne4 {[%emt 0:05:30]} 17. g3 {[%emt 0:07:29]} (17. h3 $5 {[%cal Rc3e4]} cxd4 18. Nxe4 dxe4 19. Bg4 $11) 17... Ndf6 {[%emt 0:12:27]} 18. Nb5 {[%emt 0:05:09]} (18. dxc5 $11 Bxc5 19. Nxe4 dxe4 20. Be2) 18... Bb8 $15 {[%emt 0:01:04]} 19. Qa1 {[%emt 0:08:17]} (19. Qc2 $15) 19... g5 $17 {[%emt 0:02:57]} 20. Ng2 {[%emt 0:00:48]} Qf5 {[%emt 0:00:28]} 21. Bxe4 {[%emt 0:01:06]} Nxe4 {[%emt 0:06:04]} 22. Rf1 {[%emt 0:02:17]} (22. Re2 $17) 22... a6 $2 {[%emt 0:09:02]} (22... Qh3 $1 $19 {And now ...h5 would win.} 23. Qc1 Rc8) 23. Nc3 $15 {[%emt 0:01:33]} c4 {[%emt 0:07:57]} (23... Nxc3 $15 24. Bxc3 c4) 24. Nxe4 $11 {[%emt 0:01:56]} dxe4 {[%emt 0:00:33]} 25. bxc4 {[%emt 0:01:21]} Bd6 {[%emt 0:00:45]} (25... b5 $1 $11) 26. a4 {[%emt 0:05:22]} ({White should play} 26. Qb1 $14) 26... b5 {[%emt 0:02:24]} 27. Rc1 {[%emt 0:06:08]} bxc4 {[%emt 0:03:39]} 28. Rxc4 {[%emt 0:00:08]} Rec8 {[%emt 0:04:18]} 29. Rxc8+ {[%emt 0:01:50]} Rxc8 {[%emt 0:00:09]} 30. Ba3 {[%emt 0:00:42]} Bxa3 {[%emt 0:06:21]} 31. Qxa3 {[%emt 0:00:03]} a5 {[%emt 0:00:12]} 32. h4 {[%emt 0:02:12]} Rc4 {[%emt 0:05:50]} 33. hxg5 {[%emt 0:00:38]} hxg5 {[%emt 0:00:39]} 34. Qe7 {[%emt 0:02:11]} Bc6 {[%emt 0:02:15][%mdl 1024] Black has compensation.} 35. Rb1 {[%emt 0:08:17][%cal Bf1b1,Bb1b8,Bb8d8][%mdl 32]} Rc2 {[%emt 0:00:40]} 36. Rb8+ {[%emt 0:00:36]} Kh7 $2 {[%emt 0:02:13][%mdl 8192] [#]} (36... Kg7 $11 37. Qf8+ Kg6) 37. Nf4 $1 $18 {[%emt 0:00:08][%cal Oe7d8][%mdl 512]} Bd7 {[%emt 0:02:09] [#]} 38. Rd8 $1 {[%emt 0:03:47][%cal Oe7f8] White wants to mate with Qf8!} Rc1+ {[%emt 0:03:19] [#]} 39. Kg2 $2 {[%emt 0:00:11]} ({White has to play} 39. Kh2 $1 $18 {Intending g4 and mate.} Rc2 40. Qf8) 39... Be6 $11 {[%emt 0:00:52] The position is equal.} 40. Qf8 {[%emt 0:00:47][%csl Gd8][%cal Rf8h8] Really sharp!} (40. Nxe6 $2 Qf3+ 41. Kh3 Rh1#) 40... Qf6 $36 {[%emt 0:00:14][%mdl 2048] Against Qh8+. Black has some pressure.} (40... gxf4 $2 41. Qh8+ Kg6 42. Rg8#) 41. Qg8+ $1 {[%emt 0:29:35]} (41. Nxe6 $2 {leads to mate.} Qf3+ 42. Kh3 Rh1#) 41... Kh6 {[%emt 0:00:48]} 42. Qh8+ {[%emt 0:01:36]} ({But not} 42. Qf8+ $6 Kh7 $16) 42... Qxh8 {[%emt 0:00:09]} 43. Rxh8+ {[%emt 0:00:03]} Kg7 {[%emt 0:00:08]} 44. Nxe6+ {[%emt 0:03:47]} Kxh8 {[%emt 0:00:21]} 45. Nxg5 {[%emt 0:00:02][%mdl 4096] Endgame KR-KN} Rc4 {[%emt 0:05:32] aiming for ...Kg7.} 46. Nxf7+ {[%emt 0:00:57]} (46. Nxe4 Rxa4 47. Kf3 Kg7 $19) 46... Kg7 {[%emt 0:01:04]} 47. Nd6 {[%emt 0:00:03]} Rxa4 {[%emt 0:00:10]} 48. Nxe4 {[%emt 0:00:05]} Rb4 {[%emt 0:06:25]} 49. Nc5 {[%emt 0:00:05]} a4 {[%emt 0:00:32]} 50. Nxa4 {[%emt 0:00:18]} Rxa4 {[%emt 0:00:06] KR-KP} 51. f4 {[%emt 0:00:14]} Kf6 {[%emt 0:02:40]} 52. Kf3 {[%emt 0:00:07]} Ra1 {[%emt 0:07:01]} 53. g4 {[%emt 0:00:44]} Rg1 {[%emt 0:02:04]} 54. d5 {[%emt 0:01:43]} Ke7 {[%emt 0:02:23]} 55. g5 {[%emt 0:00:58]} Kd6 {[%emt 0:00:18]} 56. Ke4 {[%emt 0:03:06]} Rg3 {[%emt 0:01:51]} 57. Kd4 {[%emt 0:01:09] Hoping for e4.} Rg1 {[%emt 0:02:02] White must now prevent ...Rd1+.} (57... Rg4 $5) 58. Ke4 {[%emt 0:01:51]} Rg3 {[%emt 0:00:02]} 59. Kf5 {[%emt 0:02:11] Strongly threatening e4.} Rxe3 {[%emt 0:00:44]} 60. Kf6 {[%emt 0:00:39]} Kxd5 {[%emt 0:00:38] KR-KPP} 61. f5 {[%emt 0:00:29]} Ra3 {[%emt 0:05:09]} 62. g6 {[%emt 0:00:33]} Ra6+ {[%emt 0:00:27]} 63. Kg5 {[%emt 0:00:31] Threatening mate with g7.} Ke5 {[%emt 0:01:22]} 64. g7 {[%emt 0:00:18]} Ra1 {[%emt 0:00:25] ( -> ...Rg1+)} (64... Ra2 $5 65. Kg6 $8 Ra6+ 66. f6 Rxf6+ 67. Kh5 Rf5+ 68. Kg6 Rf6+ 69. Kh5 Rf5+ 70. Kg6 Rf6+ $11) 65. Kg6 $1 {[%emt 0:00:29]} Rg1+ {[%emt 0:00:34]} 66. Kf7 {[%emt 0:00:09]} Kxf5 {[%emt 0:00:22]} 67. g8=Q {[%emt 0:00:09]} Rxg8 {[%emt 0:00:05]} 68. Kxg8 {[%emt 0:00:06] What a bad dream for Black.  Weighted Error Value: White=0.17 (very precise) /Black=0.20 (precise)} 1/2-1/2